[Event "Czech Open-Rapid 2022"]
[Site "Pardubice"]
[Date "2022.07.21"]
[Round "6.28"]
[White "Mojzis, Jaroslav"]
[Black "Slavik, Jan"]
[Result "1-0"]
[ECO "A08"]
[WhiteElo "2108"]
[BlackElo "1913"]
[Annotator "NA RC"]
[PlyCount "83"]
[EventDate "2022.07.20"]
[EventType "swiss"]
[EventCountry "CZE"]
[SourceTitle "playchess.com"]
[Source "ChessBase"]
[SourceQuality "1"]
[TimeControl "1200+10"]

1. Nf3 {[%emt 0:00:02]} d5 {[%emt 0:00:08]} 2. g3 {[%emt 0:00:04]} c5 {[%emt 0:00:24]} 3. Bg2 {[%emt 0:00:03]} Nc6 {[%emt 0:00:02]} 4. d4 {[%emt 0:00:03]} e6 {[%emt 0:00:06]} 5. O-O {[%emt 0:00:04]} Nf6 {[%emt 0:02:05]} 6. c4 {[%emt 0:00:07]} cxd4 {[%emt 0:00:25]} 7. Nxd4 {[%emt 0:00:43]} Be7 {[%emt 0:01:01]} 8. Nc3 {[%emt 0:00:17]} O-O {[%emt 0:00:08]} 9. cxd5 {[%emt 0:00:15]} exd5 {[%emt 0:00:09]} 10. Bg5 {[%emt 0:00:07]} Re8 {[%emt 0:07:18]} 11. Rc1 {[%emt 0:00:13]} h6 {[%emt 0:00:21]} 12. Be3 {[%emt 0:00:04]} Qa5 {[%emt 0:02:53]} 13. Nb3 {[%emt 0:00:23]} Qa6 {[%emt 0:00:37]} 14. Re1 {[%emt 0:02:39]} Be6 {[%emt 0:00:47]} 15. Nd4 {[%emt 0:00:14]} Rad8 {[%emt 0:01:10]} 16. a3 {[%emt 0:01:14]} Bd6 {[%emt 0:03:27]} 17. Ncb5 {[%emt 0:02:04]} Nxd4 {[%emt 0:00:16]} 18. Nxd4 {[%emt 0:00:13]} Rc8 {[%emt 0:00:04]} 19. Nxe6 {[%emt 0:01:02]} fxe6 {[%emt 0:00:04]} 20. Qd3 {[%emt 0:02:28]} Qxd3 {[%emt 0:00:11]} 21. exd3 {[%emt 0:00:03]} b6 {[%emt 0:00:10]} 22. Bh3 {[%emt 0:00:37]} Kf7 {[%emt 0:00:05]} 23. Rxc8 {[%emt 0:00:56]} Rxc8 {[%emt 0:00:01]} 24. Bxb6 {[%emt 0:00:21]} Re8 {[%emt 0:01:19]} 25. Bxa7 {[%emt 0:00:29]} e5 {[%emt 0:00:02]} 26. Be3 {[%emt 0:01:23]} Rb8 {[%emt 0:00:13]} 27. b4 {[%emt 0:00:09]} Ra8 {[%emt 0:00:14]} 28. Bc1 {[%emt 0:00:14]} Ra7 {[%emt 0:00:33]} 29. Bb2 {[%emt 0:00:06]} e4 {[%emt 0:00:32]} 30. dxe4 {[%emt 0:00:38]} dxe4 {[%emt 0:00:13]} 31. Bg2 {[%emt 0:00:49]} Re7 {[%emt 0:00:09]} 32. Bf1 {[%emt 0:00:41]} Ke8 {[%emt 0:00:06]} 33. Bb5+ {[%emt 0:01:02]} Kd8 {[%emt 0:00:01]} 34. Rd1 {[%emt 0:00:57]} Kc7 {[%emt 0:00:15]} 35. Bd4 {[%emt 0:00:11]} Kb7 {[%emt 0:00:17]} 36. Rc1 {[%emt 0:00:12]} Rc7 {[%emt 0:00:10]} 37. Rxc7+ {[%emt 0:00:46]} Kxc7 {[%emt 0:00:02]} 38. Kf1 {[%emt 0:00:08]} Bf8 {[%emt 0:00:12]} 39. Bc4 {[%emt 0:00:14]} Nd7 {[%emt 0:00:13]} 40. Ke2 {[%emt 0:00:23]} g5 {[%emt 0:00:15]} 41. Ke3 {[%emt 0:00:16]} Nb6 {[%emt 0:00:10]} 42. Bb3 {[%emt 0:00:13]} 1-0

[Event "Czech Open-Rapid 2022"]
[Site "Pardubice"]
[Date "2022.07.21"]
[Round "6.29"]
[White "Mierins, Emils Janis"]
[Black "Shystarova, Anna"]
[Result "1-0"]
[ECO "B06"]
[WhiteElo "2042"]
[BlackElo "1856"]
[Annotator "TA"]
[PlyCount "81"]
[EventDate "2022.07.20"]
[EventType "swiss"]
[EventCountry "CZE"]
[SourceTitle "playchess.com"]
[Source "ChessBase"]
[SourceQuality "1"]
[TimeControl "1200+10"]

{[%evp 14,81,56,20,36,34,36,35,39,37,49,38,35,28,68,68,46,-11,29,37,68,0,0,14,7,8,519,523,511,512,498,473,511,456,491,484,504,485,516,539,537,518,769,576,694,685,805,845,857,851,1039,1029,937,737,982,808,925,906,837,639,603,522,647,522,5143,522,29992,29993,29997,29998]} 1. e4 {[%emt 0:00:08]} g6 {[%emt 0:00:00]} 2. d4 {[%emt 0:00:02]} Bg7 {[%emt 0:00:01]} 3. Nc3 {[%emt 0:00:02]} d6 {[%emt 0:00:01]} 4. g3 {[%emt 0:00:10]} c6 {[%emt 0:00:04]} 5. Bg2 {[%emt 0:00:00]} Nf6 {[%emt 0:00:18]} 6. a4 {[%emt 0:00:04]} a5 {[%emt 0:00:03]} 7. Nge2 O-O {[%emt 0:00:06]} 8. O-O {[%emt 0:00:07] 8.0-0 is better than 8.h3.} Nbd7 {[%emt 0:00:40] B07: Pirc Defence: Miscellaneous Systems.} 9. h3 {[%emt 0:00:08]} Rb8 {[%emt 0:00:52]} 10. Be3 {[%emt 0:00:34]} b5 {[%emt 0:00:16] White is slightly better.} 11. axb5 {[%emt 0:03:31]} cxb5 {[%emt 0:00:04] [#]} 12. Qd3 $146 {[%emt 0:00:10]} ({Predecessor:} 12. f4 b4 13. Na4 Ba6 14. Rf2 Qc7 15. d5 Bxe2 16. Qxe2 Rfc8 17. Rd1 Qc4 18. b3 Qxe2 19. Rxe2 {1-0 (37) Neuenschwander,B-Hirzel,A Kobanya 1988}) 12... b4 {[%emt 0:01:41]} 13. Na4 {[%emt 0:00:18]} Bb7 {[%emt 0:01:08]} 14. c3 {[%emt 0:00:18]} e5 {[%emt 0:03:22]} 15. Rfc1 {[%emt 0:01:14]} ({White should try} 15. d5 $14) 15... exd4 {[%emt 0:01:46]} 16. cxd4 {[%emt 0:00:04]} Qe7 {[%emt 0:02:13]} 17. Rc7 {[%emt 0:02:13]} ({White should play} 17. f3 $14) 17... Bxe4 $11 {[%emt 0:01:28]} 18. Bxe4 {[%emt 0:00:06]} Nxe4 {[%emt 0:00:01]} 19. Rxd7 {[%emt 0:00:08]} Nxf2 $2 {[%emt 0:02:16][%mdl 8192] This costs Black the game.} (19... Qxd7 $11 20. Qxe4 Qxh3) 20. Rxe7 $18 {[%emt 0:00:32]} Nxd3 {[%emt 0:00:02]} 21. Rd1 {[%emt 0:00:02][%cal Ba1d1,Bd1d2,Bd2b2,Bb2b3,Bb3e3][%mdl 32]} Nxb2 {[%emt 0:01:09]} 22. Nxb2 {[%emt 0:00:03] Pair of Knights!} Rfc8 {[%emt 0:01:38]} 23. Rd2 {[%emt 0:00:59]} ({Weaker is} 23. Rf1 Rc2 $18) 23... Ra8 {[%emt 0:00:23]} 24. Na4 {[%emt 0:01:03]} Rcb8 {[%emt 0:00:43]} 25. Rb2 {[%emt 0:00:52]} Bf8 {[%emt 0:00:44]} 26. Rd7 {[%emt 0:00:30]} Re8 {[%emt 0:00:39]} 27. Kf2 {[%emt 0:00:05]} Re4 {[%emt 0:00:15]} 28. Bf4 {[%emt 0:00:24]} Rc8 {[%emt 0:01:12]} 29. Ra7 {[%emt 0:00:44]} b3 {[%emt 0:01:01]} 30. Rxb3 {[%emt 0:00:21]} Rc2 {[%emt 0:00:15]} 31. Re3 {[%emt 0:00:20]} Rxd4 {[%emt 0:00:01]} 32. Nac3 {[%emt 0:00:44]} Rc4 {[%emt 0:00:26]} 33. Rxa5 {[%emt 0:01:36]} d5 {[%emt 0:00:01]} 34. Rxd5 {[%emt 0:00:21]} Bc5 {[%emt 0:00:09] [#]} 35. Rxc5 $1 {[%emt 0:00:02]} Rxc5 {[%emt 0:00:02]} 36. Bh6 {[%emt 0:00:09][%cal Re3e8]} f5 {[%emt 0:00:05]} 37. Kf3 {[%emt 0:00:14]} Kf7 {[%emt 0:00:00]} 38. Bg5 {[%emt 0:00:08]} Rc4 {[%emt 0:00:15]} 39. Nd5 {[%emt 0:00:18] [#] Re7+ would kill now.} Rd2 {[%emt 0:00:09]} 40. Re7+ {[%emt 0:00:06]} Kf8 {[%emt 0:00:11]} 41. Bh6+ {[%emt 0:00:02] Weighted Error Value: White=0.28 (precise) /Black=0.54} 1-0

[Event "Czech Open-Rapid 2022"]
[Site "Pardubice"]
[Date "2022.07.21"]
[Round "6.30"]
[White "Savitha Shri B"]
[Black "Michelle Catherina, P."]
[Result "0-1"]
[ECO "B28"]
[WhiteElo "2278"]
[BlackElo "2141"]
[Annotator "TA"]
[PlyCount "58"]
[EventDate "2022.07.20"]
[EventType "swiss"]
[EventCountry "CZE"]
[SourceTitle "playchess.com"]
[Source "ChessBase"]
[SourceQuality "1"]
[TimeControl "1200+10"]

{[%evp 9,58,-21,0,0,0,-8,0,0,-14,-14,-11,-13,-13,-10,-10,-22,-11,-21,0,-12,0,-43,-37,-89,-85,-80,-85,-116,-125,-116,-118,-144,-137,-180,-130,-333,-330,-490,-504,-500,-495,-558,-539,-614,-628,-1257,-1054,-998,-709,-5177,-2768]} 1. e4 {[%emt 0:00:01]} c5 {[%emt 0:00:15]} 2. Nf3 {[%emt 0:00:07]} a6 {[%emt 0:00:03]} 3. c3 {[%emt 0:00:05]} d5 {[%emt 0:00:03]} 4. e5 {[%emt 0:01:10]} Nc6 {[%emt 0:00:08]} 5. d4 {[%emt 0:00:02]} Bg4 {[%emt 0:01:01]} 6. Be2 {[%emt 0:00:22] B28: Sicilian: 2 Nf3 a6 (O'Kelly Variation).} e6 {[%emt 0:00:30]} 7. O-O {[%emt 0:00:23]} cxd4 {[%emt 0:00:53]} (7... Bxf3 {keeps more tension.} 8. Bxf3 Nge7 9. Na3 cxd4 10. cxd4 Nf5) 8. Nxd4 {[%emt 0:00:35] The position is equal.} Bxe2 {[%emt 0:00:28]} 9. Qxe2 {[%emt 0:00:03] [#]} Nge7 $146 {[%emt 0:00:56]} ({Predecessor:} 9... Qc7 10. Nxc6 Qxc6 11. Be3 Ne7 12. Nd2 Nf5 13. Nb3 Qc7 14. Bf4 Bc5 15. Rfd1 Qb6 {1-0 (47) Tecirli,M-Erman,E Urgup 2004}) 10. Nxc6 {[%emt 0:01:41]} Nxc6 {[%emt 0:00:31]} 11. Nd2 {[%emt 0:00:34]} Qc7 {[%emt 0:01:12]} 12. Nf3 {[%emt 0:00:05]} h6 {[%emt 0:00:26][%cal Bh7h6,Bh6h5][%mdl 32]} 13. Bf4 {[%emt 0:00:22]} Be7 {[%emt 0:01:23]} 14. Rfd1 {[%emt 0:00:22]} g5 {[%emt 0:03:43]} 15. Bg3 {[%emt 0:00:04]} h5 {[%emt 0:00:36] [#] ...h4 is the strong threat.} 16. h4 {[%emt 0:03:41]} (16. h3 $1 $15) 16... gxh4 $17 {[%emt 0:01:05]} 17. Nxh4 {[%emt 0:00:23]} O-O-O {[%emt 0:01:14]} ({Resist} 17... Bxh4 18. Bxh4 Rg8 19. Bf6 $14 (19. Qxh5 Qxe5 20. Qf3 Qh8 $11)) 18. c4 {[%emt 0:00:07]} dxc4 {[%emt 0:01:20][%cal Bd5c4,Bc4c3,Bc3c2][%mdl 32]} 19. Rxd8+ {[%emt 0:01:07]} Rxd8 {[%emt 0:00:37]} 20. Qxh5 {[%emt 0:00:05]} Bc5 {[%emt 0:01:05] Black is more active.} 21. Rc1 {[%emt 0:00:22] [#]} b5 {[%emt 0:00:19]} (21... Nb4 $1 $19 22. a3 Nd3) 22. b3 $2 {[%emt 0:00:33] This move loses the game for White.} (22. Nf3 $17 {is a better defense.}) 22... Ba3 $19 {[%emt 0:00:18]} 23. Re1 {[%emt 0:01:52]} (23. Rc3 {was worth a try.} Nd4 24. bxc4) 23... c3 {[%emt 0:00:11] Black is clearly winning.} 24. Bf4 {[%emt 0:00:16]} c2 {[%emt 0:00:26]} 25. Qf3 {[%emt 0:03:06]} Kb8 {[%emt 0:00:43]} 26. Bg5 {[%emt 0:03:32]} Rd7 {[%emt 0:00:49]} 27. Bc1 {[%emt 0:01:40]} Bxc1 {[%emt 0:01:54]} 28. Rxc1 {[%emt 0:00:02]} Qd8 {[%emt 0:00:36] Threatens to win with ...Rd1+.} 29. Rf1 {[%emt 0:00:37]} Rd1 {[%emt 0:00:19] Weighted Error Value: White=0.69/Black=0.25 (precise)} 0-1

[Event "Czech Open-Rapid 2022"]
[Site "Pardubice"]
[Date "2022.07.21"]
[Round "6.31"]
[White "Jun, Rudolf"]
[Black "Haack, Stefan"]
[Result "1-0"]
[ECO "C89"]
[WhiteElo "2134"]
[BlackElo "1757"]
[Annotator "NA RC"]
[PlyCount "71"]
[EventDate "2022.07.20"]
[EventType "swiss"]
[EventCountry "CZE"]
[SourceTitle "playchess.com"]
[Source "ChessBase"]
[SourceQuality "1"]
[TimeControl "1200+10"]

1. e4 {[%emt 0:00:03]} e5 {[%emt 0:00:03]} 2. Nf3 {[%emt 0:00:01]} Nc6 {[%emt 0:00:01]} 3. Bb5 {[%emt 0:00:01]} a6 {[%emt 0:00:04]} 4. Ba4 {[%emt 0:00:01]} Nf6 {[%emt 0:00:01]} 5. O-O {[%emt 0:00:03]} b5 {[%emt 0:00:03]} 6. Bb3 {[%emt 0:00:02]} Be7 {[%emt 0:00:02]} 7. Re1 {[%emt 0:00:03]} O-O {[%emt 0:00:04]} 8. c3 {[%emt 0:00:01]} d5 {[%emt 0:00:03]} 9. exd5 {[%emt 0:00:29]} Nxd5 {[%emt 0:00:03]} 10. d4 {[%emt 0:00:35]} exd4 {[%emt 0:00:20]} 11. Nxd4 {[%emt 0:00:02]} Nxd4 {[%emt 0:01:09]} 12. Bxd5 {[%emt 0:00:27]} c6 {[%emt 0:02:14]} 13. Be4 {[%emt 0:01:36]} f5 {[%emt 0:01:11]} 14. Bd3 {[%emt 0:01:37]} Ne6 {[%emt 0:00:52]} 15. Bc2 {[%emt 0:00:02]} Qxd1 {[%emt 0:01:01]} 16. Bxd1 {[%emt 0:00:02]} Bf6 {[%emt 0:02:35]} 17. Bb3 {[%emt 0:00:40]} Re8 {[%emt 0:00:30]} 18. Nd2 {[%emt 0:00:05]} Kf8 {[%emt 0:01:06]} 19. Nf3 {[%emt 0:00:16]} Nc5 {[%emt 0:01:50]} 20. Rxe8+ {[%emt 0:00:01]} Kxe8 {[%emt 0:00:01]} 21. Bc2 {[%emt 0:00:12]} g6 {[%emt 0:01:01]} 22. Bf4 {[%emt 0:00:21]} Kf7 {[%emt 0:03:58]} 23. Re1 {[%emt 0:00:35]} Ne6 {[%emt 0:01:01]} 24. Bb3 {[%emt 0:00:09]} Bd7 {[%emt 0:00:53]} 25. Ne5+ {[%emt 0:00:50]} Bxe5 {[%emt 0:00:06]} 26. Bxe5 {[%emt 0:00:09]} Re8 {[%emt 0:00:17]} 27. f3 {[%emt 0:00:13]} h6 {[%emt 0:00:43]} 28. Kf2 {[%emt 0:00:04]} g5 {[%emt 0:00:11]} 29. h4 Kg6 30. hxg5 {[%emt 0:01:09]} hxg5 {[%emt 0:00:25]} 31. Bc2 {[%emt 0:00:50]} Nc5 {[%emt 0:00:38]} 32. b4 {[%emt 0:00:54]} Ne6 {[%emt 0:00:44]} 33. Rd1 {[%emt 0:00:15]} Re7 {[%emt 0:01:08]} 34. g4 {[%emt 0:00:11]} Nf4 {[%emt 0:01:10]} 35. Bxf4 {[%emt 0:00:27]} gxf4 {[%emt 0:00:02]} 36. Rxd7 {[%emt 0:00:03]} 1-0

[Event "Czech Open-Rapid 2022"]
[Site "Pardubice"]
[Date "2022.07.21"]
[Round "6.32"]
[White "Soukup, Stepan"]
[Black "Bares, Jachym"]
[Result "0-1"]
[ECO "A58"]
[WhiteElo "1809"]
[BlackElo "2129"]
[Annotator "NA RC"]
[PlyCount "88"]
[EventDate "2022.07.20"]
[EventType "swiss"]
[EventCountry "CZE"]
[SourceTitle "playchess.com"]
[Source "ChessBase"]
[SourceQuality "1"]
[TimeControl "1200+10"]

1. d4 {[%emt 0:00:01]} Nf6 {[%emt 0:00:01]} 2. c4 {[%emt 0:00:02]} c5 {[%emt 0:00:01]} 3. d5 {[%emt 0:00:01]} b5 {[%emt 0:00:01]} 4. cxb5 {[%emt 0:00:02]} a6 {[%emt 0:00:00]} 5. bxa6 {[%emt 0:00:01]} g6 {[%emt 0:00:01]} 6. g3 {[%emt 0:00:04]} Bxa6 {[%emt 0:00:04]} 7. Nc3 {[%emt 0:00:03]} d6 {[%emt 0:00:04]} 8. Bg2 {[%emt 0:00:01]} Bg7 {[%emt 0:00:02]} 9. Nf3 {[%emt 0:00:02]} O-O {[%emt 0:00:03]} 10. O-O {[%emt 0:00:02]} Nbd7 {[%emt 0:00:01]} 11. Re1 {[%emt 0:01:17]} Ng4 {[%emt 0:00:04]} 12. Qc2 {[%emt 0:00:10]} Nge5 {[%emt 0:00:07]} 13. Bg5 {[%emt 0:02:11]} h6 {[%emt 0:00:32]} 14. Bd2 {[%emt 0:00:06]} Kh7 {[%emt 0:00:10]} 15. a4 {[%emt 0:01:51]} Qb6 {[%emt 0:00:47]} 16. Rab1 {[%emt 0:01:12]} Rfb8 {[%emt 0:02:08]} 17. b3 {[%emt 0:00:25]} Qc7 {[%emt 0:03:01]} 18. Rec1 {[%emt 0:01:52]} Nxf3+ {[%emt 0:02:04]} 19. Bxf3 {[%emt 0:00:03]} Ne5 {[%emt 0:00:02]} 20. Bg2 {[%emt 0:00:53]} Qd7 {[%emt 0:00:02]} 21. h3 {[%emt 0:01:49]} Qc8 {[%emt 0:00:42]} 22. f4 {[%emt 0:01:25]} Nd7 {[%emt 0:00:02]} 23. e4 {[%emt 0:00:40]} Ra7 {[%emt 0:00:25]} 24. Be3 {[%emt 0:00:31]} Rab7 {[%emt 0:00:37]} 25. e5 {[%emt 0:00:57]} dxe5 {[%emt 0:01:30]} 26. d6 {[%emt 0:00:28]} exd6 {[%emt 0:00:49]} 27. Bxb7 {[%emt 0:00:10]} Bxb7 {[%emt 0:00:01]} 28. Nb5 {[%emt 0:00:12]} Qc6 {[%emt 0:00:38]} 29. Kh2 {[%emt 0:00:12]} exf4 {[%emt 0:00:13]} 30. Bxf4 {[%emt 0:00:09]} Ne5 {[%emt 0:01:18]} 31. Bxe5 {[%emt 0:00:18]} Bxe5 {[%emt 0:00:01]} 32. Rf1 {[%emt 0:00:21]} Rf8 {[%emt 0:00:31]} 33. Rf2 {[%emt 0:00:07]} f5 {[%emt 0:00:16]} 34. Rbf1 {[%emt 0:00:16]} f4 {[%emt 0:04:07]} 35. g4 {[%emt 0:01:57]} f3+ {[%emt 0:00:10]} 36. Kg1 {[%emt 0:00:05]} Bg3 {[%emt 0:00:28]} 37. Qd2 {[%emt 0:02:12]} Bxf2+ {[%emt 0:01:55]} 38. Rxf2 {[%emt 0:00:02]} d5 {[%emt 0:00:01]} 39. Qe3 {[%emt 0:01:43]} Qf6 {[%emt 0:02:31]} 40. Qxc5 {[%emt 0:00:29]} Qa1+ {[%emt 0:00:01]} 41. Kh2 {[%emt 0:00:08]} Qe5+ {[%emt 0:00:02]} 42. Kg1 {[%emt 0:00:02]} Rc8 {[%emt 0:00:05]} 43. Qa3 {[%emt 0:00:26]} Qe1+ {[%emt 0:00:41]} 44. Rf1 {[%emt 0:00:21]} Qg3+ {[%emt 0:00:14]} 0-1

[Event "Czech Open-Rapid 2022"]
[Site "Pardubice"]
[Date "2022.07.21"]
[Round "6.33"]
[White "Melichar, Vojtech"]
[Black "Hon, Jiri"]
[Result "1-0"]
[ECO "A45"]
[WhiteElo "1907"]
[BlackElo "1778"]
[Annotator "TA"]
[PlyCount "39"]
[EventDate "2022.07.20"]
[EventType "swiss"]
[EventCountry "CZE"]
[SourceTitle "playchess.com"]
[Source "ChessBase"]
[SourceQuality "1"]
[TimeControl "1200+10"]

{[%evp 10,39,34,43,70,56,73,75,85,80,162,154,145,116,114,107,145,116,416,106,97,-115,275,267,29993,29994,29994,29995,29995,29996,29998,29999]} 1. d4 {[%emt 0:00:03]} Nf6 {[%emt 0:00:02]} 2. Nc3 {[%emt 0:00:03]} g6 {[%emt 0:00:02]} 3. Bf4 {[%emt 0:00:02]} Bg7 {[%emt 0:00:02]} 4. e4 {[%emt 0:00:02]} d6 {[%emt 0:00:01]} 5. Qd2 {[%emt 0:00:03]} O-O {[%emt 0:00:05]} 6. O-O-O {[%emt 0:00:03]} Re8 {[%emt 0:00:06] B07: Pirc Defence: Miscellaneous Systems.} 7. Nf3 {[%emt 0:00:28]} c6 {[%emt 0:00:02]} 8. Bh6 {[%emt 0:00:56]} Bh8 {[%emt 0:00:02] White is better.} 9. h4 {[%emt 0:01:04][%cal Oh4h5] White is more active.} b5 {[%emt 0:00:15]} (9... Bg4 $16) 10. h5 $18 {[%emt 0:01:27]} b4 {[%emt 0:00:02] [#]} 11. hxg6 $1 {[%emt 0:03:28]} fxg6 {[%emt 0:00:03] [#]} (11... hxg6 12. Nb1) 12. Ne2 $146 {[%emt 0:02:10][%mdl 2048] And now Ng5 would win. White is really pushing.} ({Predecessor:} 12. Qf4 bxc3 13. e5 Nd5 14. Bc4 e6 15. Bxd5 cxd5 16. exd6 a5 17. Bg5 Qb6 18. bxc3 {0-1 (47) Juliano,J (1954)-Dos Santos,J (1816) Florianopolis 2017}) 12... Nxe4 {[%emt 0:00:25] [#]} 13. Qf4 {[%emt 0:00:15]} ({Avoid the trap} 13. Qxb4 $2 Nxf2 14. Ng3 Nxd1 15. Kxd1 d5 $19) 13... Bf5 {[%emt 0:02:41][%mdl 8192]} (13... Nf6 $16 {is a better defense.}) 14. Nh4 $2 {[%emt 0:02:44]} (14. g4 $18 Be6 15. Qxe4) 14... e5 $16 {[%emt 0:01:20]} 15. dxe5 {[%emt 0:01:36]} (15. Qf3 $16 Qf6 16. Nxf5 Qxf5 17. Qxf5 gxf5 18. Rh5) 15... Qa5 $2 {[%emt 0:00:00][%mdl 8192]} (15... Bxe5 $17 {keeps the pressure on.} 16. Qe3 Qa5 17. Nxf5 {[#]} Qxa2 $1 18. Qb3+ Qxb3 19. cxb3 gxf5) 16. Nxf5 $18 {[%emt 0:01:42]} Bxe5 $2 {[%emt 0:01:22]} (16... gxf5 $18 17. Nd4 (17. Qxf5 Qxe5 18. Nd4 Qxf5 $18) 17... Qxe5) 17. Ne7+ {[%emt 0:01:52] White mates.} Kh8 {[%emt 0:00:38]} 18. Qf7 {[%emt 0:01:42][%cal Rf7e8]} Bxb2+ {[%emt 0:06:02]} 19. Kb1 {[%emt 0:01:05][%cal Rf7e8]} Nd7 20. Bg7+ {Weighted Error Value: White=0.58/Black=1.31} 1-0

[Event "Czech Open-Rapid 2022"]
[Site "Pardubice"]
[Date "2022.07.21"]
[Round "6.34"]
[White "Kavalir, Jan"]
[Black "Dolensky, Filip"]
[Result "0-1"]
[ECO "B23"]
[WhiteElo "1987"]
[BlackElo "2051"]
[Annotator "NA RC"]
[PlyCount "70"]
[EventDate "2022.07.20"]
[EventType "swiss"]
[EventCountry "CZE"]
[SourceTitle "playchess.com"]
[Source "ChessBase"]
[SourceQuality "1"]
[TimeControl "1200+10"]

1. e4 {[%emt 0:00:00]} c5 {[%emt 0:00:02]} 2. Nc3 {[%emt 0:00:02]} a6 {[%emt 0:00:04]} 3. g3 {[%emt 0:00:02]} b5 {[%emt 0:00:07]} 4. Bg2 {[%emt 0:00:02]} Bb7 {[%emt 0:00:02]} 5. d3 {[%emt 0:00:09]} e6 {[%emt 0:00:10]} 6. Nf3 {[%emt 0:00:26]} Qc7 {[%emt 0:00:18]} 7. O-O {[%emt 0:00:57]} d6 {[%emt 0:00:14]} 8. Re1 {[%emt 0:01:08]} Nd7 {[%emt 0:00:16]} 9. a3 {[%emt 0:01:42]} Ngf6 {[%emt 0:00:17]} 10. d4 {[%emt 0:02:04]} cxd4 {[%emt 0:00:10]} 11. Qxd4 {[%emt 0:00:21]} Be7 {[%emt 0:01:16]} 12. a4 {[%emt 0:02:07]} bxa4 {[%emt 0:01:23]} 13. Rxa4 {[%emt 0:00:51]} Rc8 {[%emt 0:00:01]} 14. Nd2 {[%emt 0:00:56]} e5 {[%emt 0:02:07]} 15. Qe3 {[%emt 0:01:32]} O-O {[%emt 0:00:02]} 16. Bf1 {[%emt 0:02:17]} Nc5 {[%emt 0:01:05]} 17. Ra1 {[%emt 0:00:52]} Rfd8 {[%emt 0:01:30]} 18. b4 {[%emt 0:02:08]} Ne6 {[%emt 0:00:12]} 19. Bb2 {[%emt 0:00:02]} Nd4 {[%emt 0:00:31]} 20. Rec1 {[%emt 0:00:02]} d5 {[%emt 0:00:44]} 21. Bxa6 {[%emt 0:00:43]} Bxa6 {[%emt 0:00:21]} 22. Rxa6 {[%emt 0:00:03]} Bxb4 {[%emt 0:00:42]} 23. Nxd5 {[%emt 0:00:38]} Nxd5 {[%emt 0:00:02]} 24. exd5 {[%emt 0:00:01]} Bxd2 {[%emt 0:00:01]} 25. Bxd4 {[%emt 0:02:42]} Bxe3 {[%emt 0:00:04]} 26. Bxe3 {[%emt 0:00:05]} Rxd5 {[%emt 0:00:09]} 27. c4 {[%emt 0:00:08]} Ra5 {[%emt 0:00:20]} 28. Rb6 {[%emt 0:01:01]} Rc5 {[%emt 0:00:40]} 29. Bxc5 {[%emt 0:00:42]} Qxc5 {[%emt 0:00:02]} 30. Rb7 {[%emt 0:00:20]} g5 {[%emt 0:00:08]} 31. Rd1 {[%emt 0:00:23]} Qxc4 {[%emt 0:00:06]} 32. Rdd7 {[%emt 0:00:01]} e4 {[%emt 0:00:06]} 33. Re7 {[%emt 0:00:06]} h5 {[%emt 0:00:20]} 34. Ra7 {[%emt 0:00:19]} h4 {[%emt 0:00:08]} 35. Ra5 {[%emt 0:00:30]} h3 {[%emt 0:00:21]} 0-1

[Event "Czech Open-Rapid 2022"]
[Site "Pardubice"]
[Date "2022.07.21"]
[Round "6.35"]
[White "Nyc Voldanova, Barbora"]
[Black "Kotva, Milan"]
[Result "0-1"]
[ECO "D00"]
[WhiteElo "1438"]
[BlackElo "1833"]
[Annotator "NA RC COMBH"]
[PlyCount "64"]
[EventDate "2022.07.20"]
[EventType "swiss"]
[EventCountry "CZE"]
[SourceTitle "playchess.com"]
[Source "ChessBase"]
[SourceQuality "1"]
[TimeControl "1200+10"]

1. d4 {[%emt 0:00:10]} d5 {[%emt 0:00:03]} 2. e3 Nf6 {[%emt 0:00:12]} 3. b3 {[%emt 0:00:01]} a5 {[%emt 0:00:10]} 4. Bb2 {[%emt 0:00:03]} e6 {[%emt 0:00:05]} 5. Nf3 {[%emt 0:00:10]} a4 {[%emt 0:00:03]} 6. a3 {[%emt 0:00:23]} axb3 {[%emt 0:00:10]} 7. cxb3 {[%emt 0:00:01]} Bd6 {[%emt 0:00:11]} 8. Ne5 {[%emt 0:00:37]} Nbd7 {[%emt 0:00:21]} 9. Bd3 {[%emt 0:00:10]} O-O {[%emt 0:00:47]} 10. O-O {[%emt 0:00:06]} h6 {[%emt 0:01:57]} 11. f4 {[%emt 0:00:15]} c5 {[%emt 0:00:23]} 12. dxc5 {[%emt 0:03:58]} Nxc5 {[%emt 0:01:26]} 13. b4 {[%emt 0:00:34]} Nxd3 {[%emt 0:00:17]} 14. Qxd3 {[%emt 0:00:05]} b6 {[%emt 0:03:15]} 15. Nd2 {[%emt 0:01:30]} Bb7 {[%emt 0:00:22]} 16. Nb3 {[%emt 0:00:58]} Qe8 {[%emt 0:00:45]} 17. Qd4 {[%emt 0:01:23]} Bxe5 {[%emt 0:02:25]} 18. Qxe5 {[%emt 0:01:05]} Qb5 {[%emt 0:02:20]} 19. Qc7 {[%emt 0:02:30]} Qc6 {[%emt 0:01:30]} 20. Qxc6 {[%emt 0:00:30]} Bxc6 {[%emt 0:00:02]} 21. Bxf6 {[%emt 0:00:03]} gxf6 {[%emt 0:00:01]} 22. Rac1 {[%emt 0:00:14]} Bb5 {[%emt 0:00:11]} 23. Rf3 {[%emt 0:00:35]} Rxa3 {[%emt 0:00:55]} 24. Nd4 {[%emt 0:00:03]} Bd3 {[%emt 0:00:18]} 25. Rc6 {[%emt 0:00:26]} Rb8 {[%emt 0:01:17]} 26. f5 {[%emt 0:00:49]} Ra1+ {[%emt 0:00:24]} 27. Kf2 {[%emt 0:00:04]} Rf1+ {[%emt 0:00:08]} 28. Kg3 {[%emt 0:00:05]} Rxf3+ {[%emt 0:00:07]} 29. Kxf3 {[%emt 0:00:15]} e5 30. Ne2 {[%emt 0:00:21]} Bxf5 {[%emt 0:01:07]} 31. Rxf6 {[%emt 0:00:02]} Be4+ {[%emt 0:00:05]} 32. Kg3 {[%emt 0:00:15]} Kg7 {[%emt 0:00:05]} 0-1